[Event "*** Titled Tuesday Blitz"]
[Site "Chess.com"]
[Date "2021.03.30"]
[Round "2"]
[White "sbouchet"]
[Black "sganerdene"]
[Result "0-1"]
[WhiteElo "2391"]
[BlackElo "2656"]
[TimeControl "180+1"]
[EndTime "10:18:10 PDT"]
[Termination "sganerdene won by resignation"]

1. e4 {[%clk 0:03:00.9]} 1... c5 {[%clk 0:03:00.2]} 2. c3 {[%clk 0:02:59.9]}
2... e6 {[%clk 0:03:00.3]} 3. d4 {[%clk 0:02:54.2]} 3... cxd4 {[%clk 0:03:00.6]}
4. cxd4 {[%clk 0:02:53.8]} 4... d5 {[%clk 0:03:01]} 5. e5 {[%clk 0:02:52.5]}
5... Nc6 {[%clk 0:03:01.1]} 6. Nf3 {[%clk 0:02:52.1]} 6... Nge7 {[%clk
0:03:01.1]} 7. Nbd2 {[%clk 0:02:39.9]} 7... Nf5 {[%clk 0:02:59.7]} 8. Nb3 {[%clk
0:02:39.3]} 8... a5 {[%clk 0:02:56.9]} 9. a4 {[%clk 0:02:18.5]} 9... Bd7 {[%clk
0:02:56.9]} 10. Bd3 {[%clk 0:02:11.2]} 10... Be7 {[%clk 0:02:48.7]} 11. O-O
{[%clk 0:02:09.7]} 11... Qb6 {[%clk 0:02:45.2]} 12. Bxf5 {[%clk 0:01:37.3]}
12... exf5 {[%clk 0:02:44.2]} 13. Bg5 {[%clk 0:01:37.9]} 13... Bb4 {[%clk
0:02:27.6]} 14. Bd2 {[%clk 0:01:22.4]} 14... Bxd2 {[%clk 0:02:27]} 15. Nbxd2
{[%clk 0:00:50.7]} 15... Nxd4 {[%clk 0:02:27]} 16. Nxd4 {[%clk 0:00:49.8]} 16...
Qxd4 {[%clk 0:02:27.9]} 17. Nf3 {[%clk 0:00:49.3]} 17... Qxd1 {[%clk 0:02:27.4]}
18. Rfxd1 {[%clk 0:00:49.2]} 18... Be6 {[%clk 0:02:24.6]} 19. Nd4 {[%clk
0:00:40.9]} 19... Rc8 {[%clk 0:02:22.9]} 20. Rac1 {[%clk 0:00:40.7]} 20... Kd7
{[%clk 0:02:22.8]} 21. f4 {[%clk 0:00:38.3]} 21... Ke7 {[%clk 0:02:16]} 22. Kf2
{[%clk 0:00:31.6]} 22... Bd7 {[%clk 0:02:14.3]} 23. b3 {[%clk 0:00:30.6]} 23...
b6 {[%clk 0:02:10.3]} 24. Ke3 {[%clk 0:00:29.6]} 24... Rc5 {[%clk 0:02:09.1]}
25. Kd2 {[%clk 0:00:16.7]} 25... Rhc8 {[%clk 0:02:06.8]} 26. g3 {[%clk
0:00:15.8]} 26... f6 {[%clk 0:02:03.7]} 27. h4 {[%clk 0:00:10.8]} 27... fxe5
{[%clk 0:02:03.3]} 28. fxe5 {[%clk 0:00:11.7]} 28... g6 {[%clk 0:02:00.9]} 29.
Re1 {[%clk 0:00:11]} 29... Be8 {[%clk 0:01:55.5]} 30. Red1 {[%clk 0:00:10.8]}
30... h6 {[%clk 0:01:53.9]} 31. Rf1 {[%clk 0:00:09.7]} 31... Bd7 {[%clk
0:01:50.6]} 32. Rfe1 {[%clk 0:00:09.3]} 32... Rxc1 {[%clk 0:01:42.7]} 33. Rxc1
{[%clk 0:00:08.5]} 33... Rc5 {[%clk 0:01:43.3]} 34. Re1 {[%clk 0:00:05]} 34...
Rc8 {[%clk 0:01:40.2]} 35. h5 {[%clk 0:00:04.9]} 35... Rg8 {[%clk 0:01:21.6]}
36. e6 {[%clk 0:00:04.1]} 36... Be8 {[%clk 0:01:19.4]} 37. hxg6 {[%clk
0:00:04.7]} 37... Bxg6 {[%clk 0:01:19.9]} 38. Nc6+ {[%clk 0:00:04.8]} 38... Kd6
{[%clk 0:01:19.1]} 39. Nd4 {[%clk 0:00:05.1]} 39... f4 {[%clk 0:00:57.3]} 40.
gxf4 {[%clk 0:00:04.4]} 40... Be4 {[%clk 0:00:57]} 41. Re2 {[%clk 0:00:03.8]}
41... Rf8 {[%clk 0:00:54]} 42. Rh2 {[%clk 0:00:03.1]} 42... Rxf4 {[%clk
0:00:53.5]} 43. Rxh6 {[%clk 0:00:03]} 43... Rf8 {[%clk 0:00:49.5]} 44. Nb5+
{[%clk 0:00:02.5]} 44... Ke5 {[%clk 0:00:47.9]} 45. Ke3 {[%clk 0:00:01.6]} 45...
Re8 {[%clk 0:00:44.6]} 46. Ke2 {[%clk 0:00:01.7]} 46... Rxe6 {[%clk 0:00:42.8]}
47. Rxe6+ {[%clk 0:00:02.3]} 47... Kxe6 {[%clk 0:00:43.7]} 48. Ke3 {[%clk
0:00:02.5]} 48... Ke5 {[%clk 0:00:43.9]} 49. Nd4 {[%clk 0:00:03.1]} 49... Bg6
{[%clk 0:00:41.5]} 50. Nb5 {[%clk 0:00:03.3]} 50... Be8 {[%clk 0:00:37.1]} 51.
Nd4 {[%clk 0:00:03.5]} 51... Bd7 {[%clk 0:00:37.7]} 52. Nf3+ {[%clk 0:00:03.2]}
52... Kd6 {[%clk 0:00:37.5]} 53. Nd4 {[%clk 0:00:04.1]} 53... Kc5 {[%clk
0:00:37.4]} 54. Kd3 {[%clk 0:00:03.9]} 54... Kb4 {[%clk 0:00:37.8]} 55. Kc2
{[%clk 0:00:04.1]} 55... Be8 {[%clk 0:00:37]} 56. Kd3 {[%clk 0:00:03.3]} 56...
Bg6+ {[%clk 0:00:36.3]} 57. Ke3 {[%clk 0:00:03.9]} 57... Kc3 {[%clk 0:00:34.9]}
58. Nb5+ {[%clk 0:00:02.9]} 58... Kxb3 {[%clk 0:00:35.3]} 59. Kd4 {[%clk
0:00:03.3]} 59... Kxa4 {[%clk 0:00:34.5]} 60. Nc3+ {[%clk 0:00:04]} 60... Kb3
{[%clk 0:00:34.6]} 61. Nxd5 {[%clk 0:00:04.3]} 61... a4 {[%clk 0:00:34.1]} 62.
Nc3 {[%clk 0:00:04.6]} 62... a3 {[%clk 0:00:33.9]} 0-1

[Event "*** Titled Tuesday Blitz"]
[Site "Chess.com"]
[Date "2021.03.30"]
[Round "2"]
[White "Chessbard1972"]
[Black "karwowskikacper"]
[Result "0-1"]
[WhiteElo "2239"]
[BlackElo "2447"]
[TimeControl "180+1"]
[EndTime "10:18:12 PDT"]
[Termination "karwowskikacper won on time"]

1. e4 {[%clk 0:03:00.9]} 1... c5 {[%clk 0:02:58]} 2. Nf3 {[%clk 0:03:00.6]} 2...
Nc6 {[%clk 0:02:55.9]} 3. Bb5 {[%clk 0:03:00.1]} 3... g6 {[%clk 0:02:53.9]} 4.
O-O {[%clk 0:02:57.7]} 4... Bg7 {[%clk 0:02:53.4]} 5. Bxc6 {[%clk 0:02:57.9]}
5... dxc6 {[%clk 0:02:53.4]} 6. h3 {[%clk 0:02:57.4]} 6... e5 {[%clk 0:02:52]}
7. d3 {[%clk 0:02:57]} 7... Ne7 {[%clk 0:02:52.1]} 8. a4 {[%clk 0:02:55.4]} 8...
O-O {[%clk 0:02:52.2]} 9. a5 {[%clk 0:02:55.6]} 9... f6 {[%clk 0:02:35.9]} 10.
Be3 {[%clk 0:02:54.2]} 10... Qd6 {[%clk 0:02:28.7]} 11. Nfd2 {[%clk 0:02:50.7]}
11... Be6 {[%clk 0:02:26.2]} 12. Na3 {[%clk 0:02:47.9]} 12... b6 {[%clk
0:02:08.1]} 13. Nac4 {[%clk 0:02:43.3]} 13... Qc7 {[%clk 0:02:06.2]} 14. a6
{[%clk 0:02:34]} 14... Rad8 {[%clk 0:01:57.2]} 15. Qe2 {[%clk 0:02:32.8]} 15...
h6 {[%clk 0:01:43.6]} 16. f4 {[%clk 0:02:30]} 16... exf4 {[%clk 0:01:38.1]} 17.
Bxf4 {[%clk 0:02:27.5]} 17... Qd7 {[%clk 0:01:38.5]} 18. Kh2 {[%clk 0:02:20.7]}
18... Kh7 {[%clk 0:01:27]} 19. h4 {[%clk 0:02:13]} 19... f5 {[%clk 0:01:22.5]}
20. Ne5 {[%clk 0:02:06.8]} 20... Qc8 {[%clk 0:01:07]} 21. Ndf3 {[%clk 0:01:51]}
21... fxe4 {[%clk 0:00:51.2]} 22. Qxe4 {[%clk 0:01:39.5]} 22... Bf5 {[%clk
0:00:42.1]} 23. Qe3 {[%clk 0:01:34.4]} 23... Nd5 {[%clk 0:00:36.1]} 24. Qc1
{[%clk 0:01:33.9]} 24... Nxf4 {[%clk 0:00:24.7]} 25. Qxf4 {[%clk 0:01:32.4]}
25... Bxd3 {[%clk 0:00:20.6]} 26. Nxd3 {[%clk 0:01:22]} 26... Rxf4 {[%clk
0:00:20.1]} 27. Nxf4 {[%clk 0:01:21.9]} 27... Qg4 {[%clk 0:00:19.3]} 28. Nd3
{[%clk 0:01:12.8]} 28... g5 {[%clk 0:00:18.3]} 29. hxg5 {[%clk 0:01:07]} 29...
hxg5 {[%clk 0:00:19.2]} 30. Rae1 {[%clk 0:01:02]} 30... c4 {[%clk 0:00:18.2]}
31. Nde5 {[%clk 0:00:59.7]} 31... Qh5+ {[%clk 0:00:18.6]} 32. Kg1 {[%clk
0:00:58.1]} 32... g4 {[%clk 0:00:19.3]} 33. Kf2 {[%clk 0:00:52.8]} 33... gxf3
{[%clk 0:00:19.4]} 34. Rh1 {[%clk 0:00:52]} 34... Rd2+ {[%clk 0:00:11.7]} 35.
Ke3 {[%clk 0:00:47.1]} 35... Bh6+ {[%clk 0:00:12]} 36. Ke4 {[%clk 0:00:47.1]}
36... Re2+ {[%clk 0:00:12.1]} 37. Kd4 {[%clk 0:00:43.3]} 37... Qxh1 {[%clk
0:00:11.6]} 38. Rxh1 {[%clk 0:00:41.8]} 38... fxg2 {[%clk 0:00:12.3]} 39. Ra1
{[%clk 0:00:27.4]} 39... Be3+ {[%clk 0:00:11.2]} 40. Kxc4 {[%clk 0:00:27.4]}
40... g1=Q {[%clk 0:00:11.7]} 41. Rxg1 {[%clk 0:00:26.7]} 41... Bxg1 {[%clk
0:00:12.6]} 42. Nxc6 {[%clk 0:00:26.9]} 42... Rxc2+ {[%clk 0:00:12.5]} 43. Kd5
{[%clk 0:00:25.3]} 43... b5 {[%clk 0:00:09]} 44. b4 {[%clk 0:00:23.8]} 44... Ra2
{[%clk 0:00:06.4]} 45. Nb8 {[%clk 0:00:22.3]} 45... Rc2 {[%clk 0:00:06.5]} 46.
Nc6 {[%clk 0:00:20.4]} 46... Bb6 {[%clk 0:00:06.5]} 47. Kd6 {[%clk 0:00:17.7]}
47... Rc4 {[%clk 0:00:05.6]} 48. Kd5 {[%clk 0:00:17.1]} 48... Kg7 {[%clk
0:00:05.7]} 49. Kd6 {[%clk 0:00:14.9]} 49... Kf6 {[%clk 0:00:06.2]} 50. Kd5
{[%clk 0:00:14.7]} 50... Kf7 {[%clk 0:00:06.8]} 51. Kd6 {[%clk 0:00:13.6]} 51...
Ke8 {[%clk 0:00:06.8]} 52. Kd5 {[%clk 0:00:05.1]} 52... Rh4 {[%clk 0:00:04.5]}
0-1

[Event "*** Titled Tuesday Blitz"]
[Site "Chess.com"]
[Date "2021.03.30"]
[Round "2"]
[White "Stormeman100100"]
[Black "XDPS"]
[Result "0-1"]
[WhiteElo "2530"]
[BlackElo "2799"]
[TimeControl "180+1"]
[EndTime "10:18:13 PDT"]
[Termination "XDPS won by resignation"]

1. d4 {[%clk 0:03:00.9]} 1... d5 {[%clk 0:02:59.6]} 2. c4 {[%clk 0:03:00.3]}
2... c6 {[%clk 0:02:57.8]} 3. Nc3 {[%clk 0:02:58.8]} 3... Nf6 {[%clk 0:02:58.1]}
4. Nf3 {[%clk 0:02:53.6]} 4... e6 {[%clk 0:02:58]} 5. e3 {[%clk 0:02:50.9]} 5...
Nbd7 {[%clk 0:02:57.5]} 6. Qc2 {[%clk 0:02:47.3]} 6... Bd6 {[%clk 0:02:57.3]} 7.
b3 {[%clk 0:02:45.5]} 7... O-O {[%clk 0:02:55.8]} 8. Be2 {[%clk 0:02:45.6]} 8...
b6 {[%clk 0:02:56.2]} 9. Bb2 {[%clk 0:02:44.2]} 9... Bb7 {[%clk 0:02:56.5]} 10.
O-O {[%clk 0:02:44.1]} 10... Qe7 {[%clk 0:02:56.9]} 11. Rfe1 {[%clk 0:02:43.9]}
11... Rfe8 {[%clk 0:02:55.8]} 12. Rad1 {[%clk 0:02:44.1]} 12... Rad8 {[%clk
0:02:55.3]} 13. Bf1 {[%clk 0:02:40.8]} 13... e5 {[%clk 0:02:49.3]} 14. dxe5
{[%clk 0:02:41.1]} 14... Nxe5 {[%clk 0:02:49.2]} 15. Nxe5 {[%clk 0:02:37.4]}
15... Qxe5 {[%clk 0:02:49.4]} 16. g3 {[%clk 0:02:37]} 16... dxc4 {[%clk
0:02:40.7]} 17. Nd5 {[%clk 0:02:26.6]} 17... Qxd5 {[%clk 0:01:37.2]} 18. Rxd5
{[%clk 0:02:24.6]} 18... Nxd5 {[%clk 0:01:38.1]} 19. Bxc4 {[%clk 0:02:16.6]}
19... Bf8 {[%clk 0:01:37.1]} 20. e4 {[%clk 0:02:10.3]} 20... b5 {[%clk
0:01:35.4]} 21. Bf1 {[%clk 0:02:04.2]} 21... Nb4 {[%clk 0:01:34.9]} 22. Qb1
{[%clk 0:02:03.5]} 22... Na6 {[%clk 0:00:59.4]} 23. e5 {[%clk 0:01:55.1]} 23...
Nc5 {[%clk 0:00:55.8]} 24. Rd1 {[%clk 0:01:38.8]} 24... Ne6 {[%clk 0:00:52.2]}
25. Bg2 {[%clk 0:01:32.7]} 25... a6 {[%clk 0:00:48.1]} 26. Qc2 {[%clk
0:01:28.9]} 26... Rxd1+ {[%clk 0:00:46.9]} 27. Qxd1 {[%clk 0:01:29.1]} 27... Rd8
{[%clk 0:00:47.8]} 28. Qc2 {[%clk 0:01:29.5]} 28... Ba8 {[%clk 0:00:46.8]} 29.
h4 {[%clk 0:01:26.6]} 29... c5 {[%clk 0:00:46.8]} 30. Bxa8 {[%clk 0:01:24.5]}
30... Rxa8 {[%clk 0:00:47.7]} 31. f4 {[%clk 0:01:12.1]} 31... g6 {[%clk
0:00:45.3]} 32. Kf2 {[%clk 0:00:57.7]} 32... Rd8 {[%clk 0:00:41.8]} 33. Kf3
{[%clk 0:00:55.7]} 33... h5 {[%clk 0:00:11.9]} 34. a4 {[%clk 0:00:26.4]} 34...
Rd5 {[%clk 0:00:11.3]} 35. axb5 {[%clk 0:00:25.4]} 35... axb5 {[%clk 0:00:12.2]}
36. Qe2 {[%clk 0:00:24.9]} 36... c4 {[%clk 0:00:07.6]} 37. bxc4 {[%clk
0:00:23.8]} 37... bxc4 {[%clk 0:00:08.5]} 38. Qxc4 {[%clk 0:00:22.3]} 38... Rd2
{[%clk 0:00:08.8]} 39. Bc1 {[%clk 0:00:18.2]} 39... Rc2 {[%clk 0:00:08.3]} 40.
Qf1 {[%clk 0:00:12.5]} 40... Bc5 {[%clk 0:00:07.4]} 41. Ke4 {[%clk 0:00:06.9]}
41... Bf2 {[%clk 0:00:05.5]} 42. Kd3 {[%clk 0:00:06.7]} 42... Ra2 {[%clk
0:00:04.6]} 43. Kc3 {[%clk 0:00:06]} 43... Bxg3 {[%clk 0:00:04.4]} 44. f5 {[%clk
0:00:06.6]} 44... Rf2 {[%clk 0:00:04.3]} 45. Qg1 {[%clk 0:00:06.4]} 45... Rf3+
{[%clk 0:00:04.3]} 46. Kc4 {[%clk 0:00:06.6]} 46... gxf5 {[%clk 0:00:04.6]} 47.
Bg5 {[%clk 0:00:04.9]} 47... f4 {[%clk 0:00:04.8]} 48. Bf6 {[%clk 0:00:04.5]}
48... Rf2 {[%clk 0:00:04]} 49. Qh1 {[%clk 0:00:04.7]} 49... Rc2+ {[%clk
0:00:03.8]} 50. Kb3 {[%clk 0:00:04.8]} 50... Rc8 {[%clk 0:00:03.7]} 51. Qe4
{[%clk 0:00:04.1]} 51... Nc5+ {[%clk 0:00:03.9]} 0-1

[Event "*** Titled Tuesday Blitz"]
[Site "Chess.com"]
[Date "2021.03.30"]
[Round "2"]
[White "Orest_Vovk"]
[Black "prachiti01"]
[Result "1-0"]
[WhiteElo "2482"]
[BlackElo "1932"]
[TimeControl "180+1"]
[EndTime "10:18:16 PDT"]
[Termination "Orest_Vovk won by checkmate"]

1. h3 {[%clk 0:03:00.9]} 1... Nf6 {[%clk 0:02:57.2]} 2. g4 {[%clk 0:03:00.4]}
2... h6 {[%clk 0:02:52.4]} 3. Bg2 {[%clk 0:03:00.5]} 3... d5 {[%clk 0:02:50]} 4.
c4 {[%clk 0:02:56.7]} 4... e6 {[%clk 0:02:47.9]} 5. d3 {[%clk 0:02:52.5]} 5...
c6 {[%clk 0:02:46.9]} 6. Nc3 {[%clk 0:02:50.9]} 6... Be7 {[%clk 0:02:46.5]} 7.
Nf3 {[%clk 0:02:45.7]} 7... Nbd7 {[%clk 0:02:45.8]} 8. Bf4 {[%clk 0:02:45.1]}
8... Nb6 {[%clk 0:02:35.8]} 9. Ne5 {[%clk 0:02:40.9]} 9... dxc4 {[%clk
0:02:26.7]} 10. dxc4 {[%clk 0:02:35.5]} 10... Qxd1+ {[%clk 0:02:25.9]} 11. Rxd1
{[%clk 0:02:35.4]} 11... Nfd7 {[%clk 0:02:25.3]} 12. Nxd7 {[%clk 0:02:25.3]}
12... Bxd7 {[%clk 0:02:23.9]} 13. b3 {[%clk 0:02:25.4]} 13... O-O-O {[%clk
0:02:11.4]} 14. O-O {[%clk 0:02:22.3]} 14... f6 {[%clk 0:01:52.8]} 15. a4 {[%clk
0:02:05.6]} 15... e5 {[%clk 0:01:52.4]} 16. Be3 {[%clk 0:02:05.6]} 16... Kb8
{[%clk 0:01:45.1]} 17. Ne4 {[%clk 0:01:56.7]} 17... Be6 {[%clk 0:01:40.8]} 18.
Nc5 {[%clk 0:01:48.4]} 18... Bf7 {[%clk 0:01:35.8]} 19. Be4 {[%clk 0:01:38.5]}
19... Kc7 {[%clk 0:01:32.7]} 20. Bf5 {[%clk 0:01:29.5]} 20... g6 {[%clk
0:01:22]} 21. Ne6+ {[%clk 0:01:22.7]} 21... Bxe6 {[%clk 0:01:21.9]} 22. Bxe6
{[%clk 0:01:23.6]} 22... a6 {[%clk 0:01:19.8]} 23. Rxd8 {[%clk 0:01:02.8]} 23...
Rxd8 {[%clk 0:01:17.4]} 24. Bxh6 {[%clk 0:01:02.1]} 24... g5 {[%clk 0:01:11.6]}
25. h4 {[%clk 0:00:42.9]} 25... gxh4 {[%clk 0:01:08.1]} 26. Be3 {[%clk
0:00:40.4]} 26... Nd7 {[%clk 0:01:05.5]} 27. f4 {[%clk 0:00:31.7]} 27... exf4
{[%clk 0:01:00.4]} 28. Bxf4+ {[%clk 0:00:28.2]} 28... Ne5 {[%clk 0:00:58]} 29.
g5 {[%clk 0:00:27.6]} 29... Kb6 {[%clk 0:00:47.3]} 30. Bxe5 {[%clk 0:00:26.2]}
30... fxe5 {[%clk 0:00:46.4]} 31. g6 {[%clk 0:00:26.5]} 31... Bc5+ {[%clk
0:00:42.6]} 32. Kh1 {[%clk 0:00:20.3]} 32... Bf8 {[%clk 0:00:38.4]} 33. Rxf8
{[%clk 0:00:17.7]} 33... Rxf8 {[%clk 0:00:37.5]} 34. g7 {[%clk 0:00:18.2]} 34...
Re8 {[%clk 0:00:36.7]} 35. g8=Q {[%clk 0:00:17.9]} 35... Rxg8 {[%clk 0:00:36.6]}
36. Bxg8 {[%clk 0:00:18.8]} 36... Kc5 {[%clk 0:00:36.7]} 37. Kg2 {[%clk
0:00:17.4]} 37... Kb4 {[%clk 0:00:36.6]} 38. c5 {[%clk 0:00:17.7]} 38... Kxc5
{[%clk 0:00:36]} 39. Kh3 {[%clk 0:00:18]} 39... b5 {[%clk 0:00:35.7]} 40. axb5
{[%clk 0:00:17.8]} 40... cxb5 {[%clk 0:00:34.1]} 41. Kxh4 {[%clk 0:00:18.2]}
41... Kd4 {[%clk 0:00:34.1]} 42. Kg5 {[%clk 0:00:12.5]} 42... a5 {[%clk
0:00:31.4]} 43. Kf5 {[%clk 0:00:11.4]} 43... a4 {[%clk 0:00:29.5]} 44. bxa4
{[%clk 0:00:11.2]} 44... bxa4 {[%clk 0:00:29.6]} 45. e4 {[%clk 0:00:11.4]} 45...
a3 {[%clk 0:00:27.6]} 46. Bf7 {[%clk 0:00:11.6]} 46... Kc3 {[%clk 0:00:24.6]}
47. Kxe5 {[%clk 0:00:11.8]} 47... Kb2 {[%clk 0:00:24.4]} 48. Kd4 {[%clk
0:00:11.9]} 48... a2 {[%clk 0:00:24.5]} 49. Bxa2 {[%clk 0:00:11.8]} 49... Kxa2
{[%clk 0:00:24.7]} 50. e5 {[%clk 0:00:12.7]} 50... Kb2 {[%clk 0:00:25]} 51. e6
{[%clk 0:00:13.6]} 51... Kc2 {[%clk 0:00:24.9]} 52. e7 {[%clk 0:00:14.5]} 52...
Kb3 {[%clk 0:00:25]} 53. e8=Q {[%clk 0:00:15.4]} 53... Kb2 {[%clk 0:00:23.7]}
54. Qc8 {[%clk 0:00:14.6]} 54... Kb3 {[%clk 0:00:23.1]} 55. Qc3+ {[%clk
0:00:14.1]} 55... Ka2 {[%clk 0:00:22.6]} 56. Qb4 {[%clk 0:00:13.6]} 56... Ka1
{[%clk 0:00:22.3]} 57. Kc3 {[%clk 0:00:11.3]} 57... Ka2 {[%clk 0:00:23.2]} 58.
Qb2# {[%clk 0:00:10.9]} 1-0

[Event "*** Titled Tuesday Blitz"]
[Site "Chess.com"]
[Date "2021.03.30"]
[Round "2"]
[White "Mazanchenko_Dmitry"]
[Black "DrCeltic"]
[Result "0-1"]
[WhiteElo "2201"]
[BlackElo "2428"]
[TimeControl "180+1"]
[EndTime "10:18:16 PDT"]
[Termination "DrCeltic won by checkmate"]

1. e4 {[%clk 0:02:56.9]} 1... c5 {[%clk 0:02:59.9]} 2. Ne2 {[%clk 0:02:54.7]}
2... e6 {[%clk 0:02:59.9]} 3. Nbc3 {[%clk 0:02:55.2]} 3... a6 {[%clk 0:02:59.5]}
4. a4 {[%clk 0:02:55.3]} 4... Nc6 {[%clk 0:02:58.1]} 5. g3 {[%clk 0:02:55.4]}
5... Nf6 {[%clk 0:02:56.8]} 6. Bg2 {[%clk 0:02:55.5]} 6... Be7 {[%clk
0:02:56.7]} 7. O-O {[%clk 0:02:55.5]} 7... O-O {[%clk 0:02:52.2]} 8. d3 {[%clk
0:02:55.1]} 8... Rb8 {[%clk 0:02:42.5]} 9. f4 {[%clk 0:02:53]} 9... d6 {[%clk
0:02:37.1]} 10. h3 {[%clk 0:02:47.7]} 10... Bd7 {[%clk 0:02:17.2]} 11. b3 {[%clk
0:02:44.8]} 11... b5 {[%clk 0:02:16.4]} 12. axb5 {[%clk 0:02:45.7]} 12... axb5
{[%clk 0:02:16.4]} 13. Bb2 {[%clk 0:02:46.4]} 13... Nd4 {[%clk 0:02:11.5]} 14.
Nxd4 {[%clk 0:02:44.7]} 14... cxd4 {[%clk 0:02:11.7]} 15. Ne2 {[%clk 0:02:44.7]}
15... e5 {[%clk 0:02:11.8]} 16. f5 {[%clk 0:02:42.6]} 16... h6 {[%clk
0:02:11.8]} 17. g4 {[%clk 0:02:36.1]} 17... Nh7 {[%clk 0:02:11.4]} 18. c3 {[%clk
0:02:33.3]} 18... dxc3 {[%clk 0:02:07]} 19. Bxc3 {[%clk 0:02:34.2]} 19... Rc8
{[%clk 0:01:54.1]} 20. d4 {[%clk 0:02:30.9]} 20... Bf6 {[%clk 0:01:42.3]} 21.
dxe5 {[%clk 0:02:27.4]} 21... Bxe5 {[%clk 0:01:38.2]} 22. Bxe5 {[%clk
0:02:24.5]} 22... dxe5 {[%clk 0:01:39.1]} 23. Qd6 {[%clk 0:02:22.9]} 23... Rc2
{[%clk 0:01:29.3]} 24. Ng3 {[%clk 0:02:14.4]} 24... Qh4 {[%clk 0:00:56.8]} 25.
Qd3 {[%clk 0:02:05.5]} 25... Rfc8 {[%clk 0:00:44.3]} 26. Rf3 {[%clk 0:01:53]}
26... Ng5 {[%clk 0:00:41.8]} 27. Raf1 {[%clk 0:01:19.1]} 27... Nxf3+ {[%clk
0:00:34]} 28. Rxf3 {[%clk 0:01:20]} 28... Qe7 {[%clk 0:00:24.8]} 29. f6 {[%clk
0:01:17.1]} 29... Qc5+ {[%clk 0:00:21.4]} 30. Kh2 {[%clk 0:01:13.2]} 30... Be6
{[%clk 0:00:17.4]} 31. fxg7 {[%clk 0:01:10.7]} 31... Rc1 {[%clk 0:00:15.2]} 32.
Rf1 {[%clk 0:00:43.8]} 32... Rc3 {[%clk 0:00:14.3]} 33. Qd2 {[%clk 0:00:36.9]}
33... Qe3 {[%clk 0:00:13.4]} 34. Qxe3 {[%clk 0:00:32.8]} 34... Rxe3 {[%clk
0:00:14.3]} 35. b4 {[%clk 0:00:32]} 35... Rc2 {[%clk 0:00:13.8]} 36. Kh1 {[%clk
0:00:24.7]} 36... Rxg3 {[%clk 0:00:13.3]} 37. Rg1 {[%clk 0:00:20.5]} 37... Bc4
{[%clk 0:00:11]} 38. Kh2 {[%clk 0:00:20.6]} 38... Re3 {[%clk 0:00:11.1]} 39. h4
{[%clk 0:00:15.5]} 39... Rxe4 {[%clk 0:00:10.8]} 40. Kg3 {[%clk 0:00:15.3]}
40... Re3+ {[%clk 0:00:10.2]} 41. Kh2 {[%clk 0:00:14.2]} 41... Bd5 {[%clk
0:00:10]} 42. h5 {[%clk 0:00:13.7]} 42... Rxg2+ {[%clk 0:00:09.8]} 43. Rxg2
{[%clk 0:00:12.5]} 43... Bxg2 {[%clk 0:00:10.7]} 44. g5 {[%clk 0:00:10.5]} 44...
Rb3 {[%clk 0:00:11.6]} 45. gxh6 {[%clk 0:00:09.9]} 45... Be4 {[%clk 0:00:10.9]}
46. Kg1 {[%clk 0:00:07.8]} 46... Rb2 {[%clk 0:00:10.7]} 47. Kf1 {[%clk
0:00:07.8]} 47... Bh7 {[%clk 0:00:10.4]} 48. Ke1 {[%clk 0:00:07.6]} 48... e4
{[%clk 0:00:10.6]} 49. Kd1 {[%clk 0:00:07.7]} 49... e3 {[%clk 0:00:10.8]} 50.
Ke1 {[%clk 0:00:07.3]} 50... f5 {[%clk 0:00:10.4]} 51. Kf1 {[%clk 0:00:07.1]}
51... f4 {[%clk 0:00:10.7]} 52. Ke1 {[%clk 0:00:07.3]} 52... f3 {[%clk
0:00:10.1]} 53. Kd1 {[%clk 0:00:06.9]} 53... Rb1# {[%clk 0:00:10.2]} 0-1